[Event "FIDE World School-ch O-17 2025"]
[Site "Vrnjacka Banja"]
[Date "2025.03.26"]
[Round "7.1"]
[White "Ljepic, Andrej"]
[Black "Bogdanov, Artyom"]
[Result "1/2-1/2"]
[Annotator "TA"]
[ECO "C58"]
[WhiteElo "2337"]
[BlackElo "2373"]
[PlyCount "198"]
[EventDate "2025.03.19"]
[EventType "swiss"]
[EventCountry "SRB"]
[SourceTitle "playchess.com"]
[Source "ChessBase"]
[SourceQuality "1"]
[TimeControl "5400+30"]

{[%evp 14,198,23,24,40,14,16,24,23,37,26,23,22,12,36,2,20,20,25,6,19,16,14,19,17,1,16,8,32,7,0,0,0,0,-2,0,0,0,0,0,0,0,-6,-83,-71,-49,-45,-89,-98,-107,-97,-95,-84,-118,-82,-94,-44,-56,-19,-10,0,-17,-21,-25,-10,-24,0,0,0,-25,-45,-40,-48,-140,-140,-153,-148,-167,-169,-172,-158,-153,-141,-141,-141,-141,-141,-148,-141,-382,-374,-366,-358,-351,-295,-336,-307,-220,-144,-144,-144,-144,-144,-144,-125,-144,-144,-144,-143,-140,-86,-75,0,-137,-137,-137,-137,-137,-137,-170,-173,-173,-137,-144,-137,-137,-137,-155,-147,-151,-156,-230,-137,-165,-137,-137,-137,-152,-137,-137,-31,-137,-137,-137,-137,-137,0,-137,-137,-137,-137,-138,-137,-158,-137,-137,-137,-137,-107,-137,-137,-141,-143,-143,0,-145,-137,-144,-93,-139,-8,-70,0,-58,-46,-62,0,0,0,0,0,0,0,0,0,0,0]} 1. e4 {[%emt 0:00:03]} e5 {[%emt 0:00:07]} 2. Nf3 {[%emt 0:00:08]} Nc6 {[%emt 0:00:06]} 3. Bc4 {[%emt 0:00:08]} Nf6 {[%emt 0:00:07][%cal Bg8f6,Bf6d5,Bd5f4,Bf4d3][%mdl 32]} 4. Ng5 {[%emt 0:00:07]} d5 {[%emt 0:00:05]} 5. exd5 {[%emt 0:00:06]} Na5 {[%emt 0:00:03]} 6. Bb5+ {[%emt 0:00:09]} c6 {[%emt 0:00:06]} 7. dxc6 {[%emt 0:00:05]} bxc6 {[%emt 0:00:03]} 8. Bd3 {[%emt 0:00:08]} Nd5 {[%emt 0:00:07] C58: Two Knights: 4 Ng5 d5 5 exd5 Na5 sidelines.} 9. Nf3 {[%emt 0:00:08][%cal Oe1g1]} (9. Nxh7 Nf4 10. Be4 Rxh7 $17) 9... Bd6 {[%emt 0:00:49]} 10. O-O {[%emt 0:00:10]} Nf4 {[%emt 0:00:32] White has an edge.} 11. Re1 {[%emt 0:01:10]} Nxd3 {[%emt 0:00:31]} 12. cxd3 {[%emt 0:00:07][%cal Od3d4] Threatens to win with d4!.} O-O {[%emt 0:01:06] Black sacrificed a pawn} 13. Nc3 {[%emt 0:12:53]} Re8 {[%emt 0:06:46]} 14. b3 {[%emt 0:13:43]} c5 {[%emt 0:07:29]} 15. Ne4 {[%emt 0:04:38] 15.Ne4 was played by the boomers.} Bf8 {[%emt 0:09:43][%cal Of7f5]} 16. Ba3 {[%emt 0:20:42]} Nc6 {[%emt 0:09:30]} 17. Rc1 {[%emt 0:12:11]} Nb4 $1 {[%emt 0:05:02]} 18. Bxb4 {[%emt 0:08:23]} cxb4 {[%emt 0:00:08]} 19. Ng3 {[%emt 0:01:10]} Bb7 {[%emt 0:09:44]} 20. Nxe5 {[%emt 0:05:49]} Qa5 {[%emt 0:07:49]} 21. d4 $146 {[%emt 0:03:41]} (21. Qh5 $5 Qd5 22. Qf3 $11) (21. Nc4 Rxe1+ 22. Qxe1 Qxa2 23. Ra1 Qxb3 24. Na5 Qd5 25. Qe4 Re8 26. Qxd5 Bxd5 27. Nc4 b3 28. Rb1 Rb8 29. Ne2 Bc5 30. Nc1 b2 {0-1 Krueger,R (1930)-Florstedt,J (2232) Berlin Lichtenberger op 16th 2017 (5)}) 21... f6 $1 {[%emt 0:03:53]} 22. Nd3 {[%emt 0:07:55]} Qd5 $40 {[%emt 0:05:27][%csl Gb7][%cal Rd5g2][%mdl 128] Black is up to no good.} 23. Qf3 {[%emt 0:02:41]} Qxf3 {[%emt 0:03:31]} 24. gxf3 {[%emt 0:00:08]} Bxf3 {[%emt 0:03:26]} 25. Re3 {[%emt 0:01:39]} Bd5 {[%emt 0:01:04]} 26. Nf4 {[%emt 0:00:17]} Bf7 {[%emt 0:01:24]} 27. d5 {[%emt 0:00:19]} Red8 {[%emt 0:02:34][%cal Od8d7]} 28. Ne6 {[%emt 0:01:23]} (28. Rd3 $11 {remains equal.}) 28... Rxd5 $17 {[%emt 0:00:43]} 29. Nxf8 {[%emt 0:01:38]} Kxf8 {[%emt 0:01:53]} 30. d3 {[%emt 0:01:18]} Rad8 {[%emt 0:01:45][%cal Oa7a5]} 31. Rc7 {[%emt 0:00:33]} R5d7 {[%emt 0:05:12] Prevents Re7.} 32. Rxd7 {[%emt 0:01:00]} Rxd7 {[%emt 0:00:06][%mdl 4096] Endgame KRB-KRN} 33. f4 {[%emt 0:01:06]} a5 {[%emt 0:01:05][%cal Oa5a4]} 34. Ne4 {[%emt 0:00:58]} Rc7 {[%emt 0:04:09]} (34... Bg6 $17 35. Kf2 Rd5) 35. Re2 $1 $15 {[%emt 0:00:20]} Rc6 {[%emt 0:02:29]} 36. Kf2 {[%emt 0:00:16]} f5 {[%emt 0:01:09]} 37. Ng3 {[%emt 0:00:15]} g6 {[%emt 0:00:23][%cal Oa5a4]} 38. Ke3 {[%emt 0:00:49]} Ke7 {[%emt 0:02:42][%cal Oa5a4]} 39. Kd4+ {[%emt 0:00:04]} Kd6 {[%emt 0:01:14][%cal Oa5a4]} 40. Nf1 {[%emt 0:00:35]} Kd7 {[%emt 0:01:08]} 41. Ng3 {[%emt 0:01:21]} Rd6+ {[%emt 0:00:59]} 42. Ke3 {[%emt 0:00:07]} a4 {[%emt 0:00:29]} 43. bxa4 {[%emt 0:00:19]} (43. Rb2 $15) 43... Ra6 $17 {[%emt 0:00:05]} 44. Rb2 {[%emt 0:01:12]} Rxa4 {[%emt 0:00:08]} 45. Ne2 {[%emt 0:00:17]} Bxa2 {[%emt 0:00:23]} (45... Rxa2 46. Rxb4 Kc7 47. Rb1 $11) 46. Nd4 {[%emt 0:00:34]} Bd5 {[%emt 0:01:59]} 47. h4 {[%emt 0:00:09]} Kd6 {[%emt 0:01:24][%cal Ob4b3]} 48. h5 {[%emt 0:00:37]} b3 {[%emt 0:01:17]} (48... gxh5 49. Nxf5+ Kd7 50. Kd4 $17) 49. hxg6 {[%emt 0:00:17]} hxg6 {[%emt 0:00:06]} 50. Rb1 {[%emt 0:01:13]} (50. Nxb3 $2 Rb4 51. Rb1 Rxb3 $19 (51... Bxb3 $2 52. Ke2 $19)) 50... Rb4 {[%emt 0:00:38]} 51. Rb2 $2 {[%emt 0:00:08]} (51. Ne2 $17) 51... Kc5 $19 {[%emt 0:00:49]} 52. Ne2 {[%emt 0:00:18]} Rb7 {[%emt 0:00:28]} 53. Nc3 {[%emt 0:00:53]} Bf7 {[%emt 0:00:08]} 54. Kd2 {[%emt 0:00:35]} Kb4 {[%emt 0:00:17]} 55. Rb1 {[%emt 0:00:31]} Rc7 {[%emt 0:00:47]} 56. Na2+ {[%emt 0:00:18]} Kb5 $1 {[%emt 0:01:06]} 57. Nc3+ {[%emt 0:00:17] [#]} Kc5 $1 {[%emt 0:01:25]} 58. Ra1 {[%emt 0:00:08] [#]} Rb7 $1 {[%emt 0:00:52]} 59. Ra5+ {[%emt 0:00:52]} Kc6 {[%emt 0:00:05]} 60. Ra6+ {[%emt 0:00:15]} Kd7 {[%emt 0:01:55]} 61. Ra1 {[%emt 0:00:45]} Be6 {[%emt 0:00:00]} (61... Ke6 $142 62. Rb1 Kf6) 62. Rg1 $17 {[%emt 0:00:30]} Bf7 {[%emt 0:00:00]} (62... Rb4 $142 63. Rxg6 Rxf4 64. Rg7+ Kd6) 63. Ra1 $1 {[%emt 0:00:01]} Ke7 {[%emt 0:00:00]} 64. Ke3 {[%emt 0:00:29]} Rb4 {[%emt 0:00:07]} 65. Ra7+ {[%emt 0:00:38]} Kf6 {[%emt 0:00:06]} 66. Ra6+ {[%emt 0:00:04]} Kg7 {[%emt 0:00:53]} 67. Ra1 {[%emt 0:00:10]} Be6 {[%emt 0:00:22]} (67... b2 68. Rb1 $15) 68. Ra6 {[%emt 0:00:20]} Kf7 {[%emt 0:00:13]} 69. Ra1 {[%emt 0:00:50]} Kf6 {[%emt 0:00:08]} 70. Rg1 {[%emt 0:00:08]} Rb8 {[%emt 0:00:29]} 71. Kd2 {[%emt 0:01:02]} Rh8 {[%emt 0:00:33]} 72. Ke3 {[%emt 0:00:24]} (72. Ne2 $17 {might work better.}) 72... Bf7 {[%emt 0:01:58]} (72... Rh3+ $19 73. Kd2 Rh2+ 74. Ne2 Bd5) 73. Kd4 {[%emt 0:01:00]} Rd8+ {[%emt 0:00:10]} 74. Ke3 {[%emt 0:00:06]} Be6 {[%emt 0:00:07]} 75. Rh1 {[%emt 0:01:25]} Bg8 {[%emt 0:00:33]} 76. Ra1 {[%emt 0:00:08]} Rd6 {[%emt 0:00:09]} (76... Rb8 $17 {Strongly threatening ...Be6.} 77. Rb1 g5 78. fxg5+ Kxg5 79. Rg1+ Kf6) 77. Rh1 {[%emt 0:00:36]} (77. Ra8 $15 Bf7 78. Rb8) 77... Bf7 {[%emt 0:00:19]} 78. Rg1 {[%emt 0:00:04]} Rd7 {[%emt 0:00:32]} 79. Ra1 {[%emt 0:00:28]} Rd6 {[%emt 0:00:36] Wards off Ra6} 80. Rg1 $1 {[%emt 0:00:12]} Ra6 {[%emt 0:01:28]} 81. Kd2 {[%emt 0:00:36]} Ra7 {[%emt 0:00:23]} 82. Ke3 {[%emt 0:00:24]} Ra8 {[%emt 0:00:04]} 83. Kd4 {[%emt 0:00:29]} Rb8 {[%emt 0:01:07]} 84. Ra1 {[%emt 0:00:40]} Rd8+ {[%emt 0:00:55]} 85. Ke3 {[%emt 0:00:04]} Rd7 {[%emt 0:00:13]} 86. Rg1 {[%emt 0:00:17]} Rd6 {[%emt 0:00:05]} 87. Rg2 {[%emt 0:00:57]} Re6+ {[%emt 0:00:00]} 88. Kd2 {[%emt 0:00:10]} Ra6 {[%emt 0:00:00]} 89. Rg1 $1 {[%emt 0:00:15]} Ke7 {[%emt 0:00:00]} 90. Rh1 {[%emt 0:00:30]} Kd6 {[%emt 0:00:56]} ({Black should try} 90... Rc6 91. Re1+ Kf6) 91. Rh7 {[%emt 0:00:18]} (91. Rc1 $142) 91... Be6 {[%emt 0:01:27]} (91... Ke6 $17 {next ...Kf6 is good for Black.} 92. Rh1 Kd7) 92. Rg7 {[%emt 0:00:41]} (92. Rb7 $11) 92... Kc5 {[%emt 0:01:06]} (92... Rb6 $1 $15) 93. Rxg6 {[%emt 0:00:31]} ({Better is} 93. Rc7+ $11 Kb6 94. Re7) 93... Rc6 {[%emt 0:00:49]} 94. Rg7 {[%emt 0:00:29]} Kb4 {[%emt 0:00:38]} (94... Bc8 $1 $15) 95. Rb7+ $11 {[%emt 0:00:08] The position is equal.} Ka3 {[%emt 0:00:24]} 96. Ra7+ {[%emt 0:00:07]} Kb2 {[%emt 0:00:22]} 97. Nd1+ {[%emt 0:00:09]} Kb1 {[%emt 0:00:18]} 98. Nc3+ {[%emt 0:00:05]} Kb2 {[%emt 0:00:08]} 99. Nd1+ {[%emt 0:00:04]} Kb1 {[%emt 0:00:03] Whites escaped into a draw.   Weighted Error Value: White=0.15 (very precise) /Black=0.09 (flawless)   Loses game:     	White=1     	---        Mistake:       	White=7     	Black=9      Inaccurate:     	White=4     	Black=3      OK:         	White=33    	Black=31     Best:        	White=9     	Black=5      Strong:       	White=4     	Black=3} 1/2-1/2

[Event "FIDE World School-ch O-17 2025"]
[Site "Vrnjacka Banja"]
[Date "2025.03.26"]
[Round "7.2"]
[White "Kazhmuratov, Altair"]
[Black "Taran, Egor A"]
[Result "1/2-1/2"]
[Annotator "NA RC"]
[ECO "D18"]
[WhiteElo "1971"]
[BlackElo "1961"]
[PlyCount "108"]
[EventDate "2025.03.19"]
[EventType "swiss"]
[EventCountry "SRB"]
[SourceTitle "playchess.com"]
[Source "ChessBase"]
[SourceQuality "1"]
[TimeControl "5400+30"]

1. c4 {[%emt 0:00:52]} c6 {[%emt 0:00:09]} 2. d4 {[%emt 0:00:43]} d5 {[%emt 0:00:05]} 3. Nf3 {[%emt 0:00:04]} Nf6 {[%emt 0:00:05]} 4. Nc3 {[%emt 0:00:05]} dxc4 {[%emt 0:00:06]} 5. a4 {[%emt 0:00:07]} Bf5 {[%emt 0:00:05]} 6. e3 {[%emt 0:00:05]} e6 {[%emt 0:00:04]} 7. Bxc4 {[%emt 0:00:04]} Bb4 {[%emt 0:00:05]} 8. O-O {[%emt 0:00:09]} Nbd7 {[%emt 0:00:04]} 9. Nh4 {[%emt 0:05:29]} O-O {[%emt 0:01:05]} 10. Nxf5 {[%emt 0:00:25]} exf5 {[%emt 0:00:01]} 11. Qb3 {[%emt 0:03:30]} a5 {[%emt 0:02:44]} 12. Na2 {[%emt 0:00:59]} Bd6 {[%emt 0:00:30]} 13. g3 {[%emt 0:13:07]} Nb6 {[%emt 0:04:22]} 14. Bd3 {[%emt 0:02:59]} g6 {[%emt 0:00:59]} 15. Nc3 {[%emt 0:00:15]} Qc7 {[%emt 0:03:27]} 16. e4 {[%emt 0:07:26]} fxe4 {[%emt 0:01:56]} 17. Nxe4 {[%emt 0:00:12]} Nxe4 {[%emt 0:03:32]} 18. Bxe4 {[%emt 0:00:02]} Rfe8 {[%emt 0:00:36]} 19. Bf3 {[%emt 0:01:38]} Bb4 {[%emt 0:05:55]} 20. Bf4 {[%emt 0:03:06]} Qd7 {[%emt 0:00:20]} 21. Be5 {[%emt 0:01:16]} Nd5 {[%emt 0:02:17]} 22. Bxd5 {[%emt 0:21:25]} Qxd5 {[%emt 0:03:02]} 23. Qxd5 {[%emt 0:00:05]} cxd5 {[%emt 0:00:06]} 24. Rfc1 {[%emt 0:06:55]} Rac8 {[%emt 0:01:10]} 25. Kf1 {[%emt 0:00:21]} f5 {[%emt 0:09:55]} 26. Ke2 {[%emt 0:03:24]} Kf7 {[%emt 0:00:15]} 27. Kd3 {[%emt 0:00:07]} Ke6 {[%emt 0:00:54]} 28. h4 {[%emt 0:05:01]} h5 {[%emt 0:03:58]} 29. f3 {[%emt 0:01:54]} Kd7 {[%emt 0:01:45]} 30. Rxc8 {[%emt 0:00:22]} Rxc8 {[%emt 0:00:08]} 31. Rg1 {[%emt 0:02:38]} Be7 {[%emt 0:10:59]} 32. Re1 {[%emt 0:05:31]} Rc4 {[%emt 0:02:44]} 33. b3 {[%emt 0:00:37]} Rb4 {[%emt 0:03:36]} 34. Kc2 {[%emt 0:00:09]} Rb6 {[%emt 0:00:12]} 35. Bf4 {[%emt 0:03:14]} Re6 {[%emt 0:02:07]} 36. Re5 {[%emt 0:04:26]} Rxe5 {[%emt 0:00:19]} 37. dxe5 {[%emt 0:01:04]} Ke6 {[%emt 0:00:56]} 38. Bd2 {[%emt 0:00:09]} Bc5 {[%emt 0:10:29]} 39. Kd3 {[%emt 0:01:28]} Bf2 {[%emt 0:00:44]} 40. Bf4 {[%emt 0:00:24]} Bb6 {[%emt 0:02:58]} 41. Kc3 {[%emt 0:02:16]} Bc7 {[%emt 0:00:22]} 42. Kd4 {[%emt 0:00:20]} b6 {[%emt 0:00:29]} 43. g4 {[%emt 0:01:33]} fxg4 {[%emt 0:00:35]} 44. fxg4 {[%emt 0:00:06]} hxg4 {[%emt 0:00:04]} 45. Bg3 {[%emt 0:01:17]} Bd8 {[%emt 0:00:17]} 46. Ke3 {[%emt 0:00:34]} Bc7 {[%emt 0:07:10]} 47. Kd4 {[%emt 0:00:02]} Bb8 {[%emt 0:01:28]} 48. Bf4 {[%emt 0:00:26]} Ba7 {[%emt 0:01:10]} 49. Kd3 {[%emt 0:00:17]} Bb8 {[%emt 0:01:54]} 50. Kd4 {[%emt 0:00:01]} Bc7 {[%emt 0:00:06]} 51. Bg3 {[%emt 0:00:26]} Bd8 {[%emt 0:00:37]} 52. Ke3 {[%emt 0:00:09]} Bc7 {[%emt 0:16:04]} 53. Kd4 {[%emt 0:00:03]} Bd8 {[%emt 0:00:05]} 54. Ke3 {[%emt 0:00:11]} Be7 {[%emt 0:01:46]} 1/2-1/2

[Event "FIDE World School-ch O-17 2025"]
[Site "Vrnjacka Banja"]
[Date "2025.03.26"]
[Round "7.3"]
[White "Orgilon Batsaikhan"]
[Black "Topuz, Mirac Melih"]
[Result "0-1"]
[Annotator "NA RC"]
[ECO "C63"]
[WhiteElo "2024"]
[BlackElo "2113"]
[PlyCount "60"]
[EventDate "2025.03.19"]
[EventType "swiss"]
[EventCountry "SRB"]
[SourceTitle "playchess.com"]
[Source "ChessBase"]
[SourceQuality "1"]
[TimeControl "5400+30"]

1. e4 {[%emt 0:00:06]} e5 {[%emt 0:00:49]} 2. Nf3 {[%emt 0:00:06]} Nc6 {[%emt 0:00:03]} 3. Bb5 {[%emt 0:00:05]} f5 {[%emt 0:00:06]} 4. Qe2 {[%emt 0:01:30]} fxe4 {[%emt 0:02:07]} 5. Qxe4 {[%emt 0:00:06]} Nf6 {[%emt 0:00:26]} 6. Qe2 {[%emt 0:00:06]} Be7 {[%emt 0:14:17]} 7. Bxc6 {[%emt 0:22:05]} dxc6 {[%emt 0:02:32]} 8. Nxe5 {[%emt 0:00:29]} O-O {[%emt 0:08:37]} 9. O-O {[%emt 0:01:41]} Bf5 {[%emt 0:06:36]} 10. d3 {[%emt 0:09:45]} c5 {[%emt 0:04:24]} 11. Nc3 {[%emt 0:01:45]} Bd6 {[%emt 0:08:01]} 12. Bg5 {[%emt 0:12:11]} b5 {[%emt 0:12:00]} 13. Rae1 {[%emt 0:08:32]} Qe8 {[%emt 0:02:09]} 14. f4 {[%emt 0:05:23]} b4 {[%emt 0:08:07]} 15. Nb1 {[%emt 0:07:25]} Qa4 {[%emt 0:01:50]} 16. b3 {[%emt 0:09:03]} Qxa2 {[%emt 0:00:38]} 17. g4 {[%emt 0:00:13]} Be6 {[%emt 0:06:36]} 18. f5 {[%emt 0:11:29]} Bd5 {[%emt 0:01:47]} 19. Bxf6 {[%emt 0:00:49]} gxf6 {[%emt 0:00:59]} 20. Nd7 {[%emt 0:01:28]} Rf7 {[%emt 0:01:37]} 21. Nxf6+ {[%emt 0:00:04]} Rxf6 {[%emt 0:00:06]} 22. g5 {[%emt 0:00:00]} Rff8 {[%emt 0:00:40]} 23. g6 {[%emt 0:00:36]} Qb2 {[%emt 0:01:36]} 24. c3 {[%emt 0:03:24]} Qxe2 {[%emt 0:02:24]} 25. Rxe2 {[%emt 0:00:01]} Bxb3 {[%emt 0:00:30]} 26. c4 {[%emt 0:01:04]} Ba4 {[%emt 0:00:28]} 27. Nd2 {[%emt 0:00:51]} hxg6 {[%emt 0:00:09]} 28. Rg2 {[%emt 0:00:21]} Bc6 {[%emt 0:00:03]} 29. Rxg6+ {[%emt 0:00:33]} Kf7 {[%emt 0:01:06]} 30. h4 {[%emt 0:00:34]} Rh8 {[%emt 0:00:13]} 0-1

[Event "FIDE World School-ch O-17 2025"]
[Site "Vrnjacka Banja"]
[Date "2025.03.26"]
[Round "7.4"]
[White "Panda, Barnabas"]
[Black "Elmirzaev, Khondamir"]
[Result "0-1"]
[Annotator "TA"]
[ECO "D53"]
[WhiteElo "2147"]
[BlackElo "2036"]
[PlyCount "120"]
[EventDate "2025.03.19"]
[EventType "swiss"]
[EventCountry "SRB"]
[SourceTitle "playchess.com"]
[Source "ChessBase"]
[SourceQuality "1"]
[TimeControl "5400+30"]

{[%evp 12,120,42,45,45,23,25,13,27,-66,8,11,23,25,0,8,29,37,44,50,64,56,36,0,0,-10,-10,-5,-15,-4,0,-33,-27,-81,-82,-75,-81,-90,-82,-92,-84,-81,-84,-71,-75,-110,-83,-189,-173,-182,-172,-342,-67,-95,-40,-49,-74,-52,-22,-43,-56,-127,-94,-91,-125,-104,-74,-247,-245,-247,-247,-326,-301,-389,-389,-382,-335,-386,-369,-408,-331,-353,-324,-307,0,-396,-366,-364,-325,-279,-205,-295,-279,-541,-650,-749,-541,-636,-550,-1486,-1524,-1258,-1462,-1306,-1158,-29989,-5197,-5106,-5097,-5073,-2031]} 1. d4 {[%emt 0:00:07]} d5 {[%emt 0:00:06]} 2. c4 {[%emt 0:00:08]} e6 {[%emt 0:00:04]} 3. Nf3 {[%emt 0:00:07]} a6 {[%emt 0:00:04]} 4. Bg5 {[%emt 0:00:08]} Nf6 {[%emt 0:00:44]} 5. e3 {[%emt 0:06:21]} Be7 {[%emt 0:01:33]} 6. Nc3 {[%emt 0:03:20]} dxc4 {[%emt 0:01:32]} 7. Bxc4 {[%emt 0:00:19]} b5 {[%emt 0:00:13] D53: Queen's Gambit Declined: 4 Bg5 Be7: Early deviations.} 8. Bd3 {[%emt 0:00:30]} Bb7 {[%emt 0:00:10]} 9. e4 {[%emt 0:08:21]} Nbd7 {[%emt 0:06:46] The position is equal.} 10. Qe2 {[%emt 0:31:43]} (10. e5 $11) 10... h6 {[%emt 0:06:23]} ({Better is} 10... c5 $15) 11. Bxf6 $11 {[%emt 0:04:13]} Bxf6 {[%emt 0:01:12]} 12. O-O $146 {[%emt 0:01:46]} ({Predecessor:} 12. e5 Be7 13. a4 O-O 14. O-O c5 15. axb5 Bxf3 16. Qxf3 cxd4 17. Qe4 g6 18. Qxd4 {½-½ Indjic,A (2536)-Miladinovic,I (2556) BIH-chT 12th 2013 (3.5)}) 12... Be7 {[%emt 0:09:55]} 13. Rfd1 {[%emt 0:08:02]} O-O {[%emt 0:04:24]} 14. Rac1 {[%emt 0:02:28]} Qe8 {[%emt 0:06:16]} 15. e5 {[%emt 0:05:41]} c5 {[%emt 0:13:38]} 16. Be4 {[%emt 0:02:47]} Bxe4 {[%emt 0:02:04]} 17. Qxe4 {[%emt 0:00:20]} c4 $1 {[%emt 0:06:27]} 18. d5 {[%emt 0:06:35]} Nc5 {[%emt 0:01:07]} 19. Qe3 {[%emt 0:00:24]} exd5 {[%emt 0:09:52]} 20. Nxd5 {[%emt 0:00:50]} Nd3 {[%emt 0:07:36]} 21. Nc7 {[%emt 0:02:59] A dynamic duo of knights.} Qc8 {[%emt 0:03:13]} (21... Qb8 {simplifies} 22. Rxd3 Qxc7 23. Rd5 Rad8) 22. Nxa8 {[%emt 0:04:11]} (22. Rxd3 $11 {remains equal.} Qxc7 23. Qe4) 22... Bc5 $1 $17 {[%emt 0:00:53] Black is more active.} (22... Nxc1 23. Nb6 Qe6 24. Rxc1 $16) 23. Nd4 {[%emt 0:01:29] aiming for Rxd3.} Nxc1 {[%emt 0:01:39]} (23... Qxa8 $2 {loses.} 24. Rxd3 cxd3 25. Rxc5 $18) 24. Qxc1 {[%emt 0:00:49][%cal Oc1f4]} Qxa8 {[%emt 0:00:27]} 25. Nf3 {[%emt 0:02:40]} Rd8 {[%emt 0:00:47] Inhibits Qd2.} 26. h3 {[%emt 0:03:53]} Rxd1+ {[%emt 0:00:38]} 27. Qxd1 {[%emt 0:00:06][%mdl 4096] Endgame KQB-KQN} Qe4 {[%emt 0:00:24]} 28. Qd8+ {[%emt 0:02:58]} Kh7 {[%emt 0:00:07]} 29. Qc8 {[%emt 0:00:43]} (29. Qd1 $17) 29... Qb1+ $19 {[%emt 0:04:14]} 30. Kh2 {[%emt 0:00:03]} Bxf2 {[%emt 0:00:22]} 31. Qxa6 $2 {[%emt 0:00:14]} (31. Qd7) 31... Qg6 $2 {[%emt 0:02:27]} (31... Qxb2 32. Qb7 Qb1 (32... Qxa2 33. Qxf7 Qa6 34. e6 $15) 33. Qxf7) (31... Be3 $19 32. Qa3 Bf4+ 33. g3 b4 (33... Qc2+ $2 34. Kg1 $19) 34. Qxb4 Qc2+ 35. Kh1 Qd1+ (35... Bxg3 36. Qd2 $17) 36. Ne1 Bxg3 (36... Bxe5 $2 37. Kh2 $19)) 32. Qxg6+ $1 $15 {[%emt 0:01:41]} Kxg6 {[%emt 0:00:07] KB-KN} (32... fxg6 $17 33. g3 Kg8) 33. g4 $1 {[%emt 0:00:31]} Be3 {[%emt 0:01:53]} 34. Kg2 {[%emt 0:00:17]} Bc1 {[%emt 0:02:19]} 35. b3 {[%emt 0:00:43]} c3 {[%emt 0:01:26]} 36. Nd4 {[%emt 0:00:14]} (36. Ne1 $15) 36... Bf4 $1 $17 {[%emt 0:02:20]} 37. a4 {[%emt 0:00:27]} bxa4 {[%emt 0:00:11]} 38. bxa4 {[%emt 0:00:01]} Bxe5 {[%emt 0:00:11]} 39. Nc2 {[%emt 0:00:06] [#]} (39. Ne2 $17) 39... Bc7 $1 $19 {[%emt 0:00:42]} 40. Kf3 {[%emt 0:00:37] [#]} Kg5 $1 {[%emt 0:00:25]} 41. Ne1 {[%emt 0:01:09]} g6 {[%emt 0:00:48]} ({But not} 41... Kh4 42. Kg2 Kg5 43. Kf3 $19) 42. Nc2 {[%emt 0:00:23]} Kh4 {[%emt 0:01:39]} 43. Kg2 {[%emt 0:00:05]} h5 {[%emt 0:00:15]} 44. gxh5 {[%emt 0:00:36]} Kxh5 {[%emt 0:00:02]} (44... gxh5 $2 45. Nd4 Kg5 46. Kf3 $17) 45. Kf3 {[%emt 0:00:27]} Kh4 {[%emt 0:00:06]} 46. Kg2 {[%emt 0:00:15]} Kg5 {[%emt 0:00:39]} 47. Kf3 {[%emt 0:00:16]} Kh4 {[%emt 0:00:48]} 48. Kg2 {[%emt 0:00:06]} Bb6 {[%emt 0:00:04]} 49. Ne1 {[%emt 0:00:57]} Kg5 {[%emt 0:00:39]} 50. Kf3 {[%emt 0:00:12]} Kf5 {[%emt 0:00:08]} 51. Nc2 {[%emt 0:01:28]} (51. Nd3 $142) 51... Ke5 {[%emt 0:00:08]} 52. Ke2 $2 {[%emt 0:00:54]} (52. a5 Bxa5 53. Ke3) 52... Ke4 {[%emt 0:00:19]} 53. Na3 {[%emt 0:00:37]} Ba5 {[%emt 0:00:50] ...f5 is the strong threat.} 54. Nc2 {[%emt 0:00:18]} f5 {[%emt 0:00:51]} 55. Ne3 {[%emt 0:00:47]} f4 {[%emt 0:00:59]} 56. Nc2 {[%emt 0:00:26]} f3+ {[%emt 0:00:48]} 57. Kf1 {[%emt 0:00:32]} Bb6 {[%emt 0:02:03]} 58. Na3 {[%emt 0:00:38]} Bc5 {[%emt 0:00:42]} (58... Kd3 $142 59. a5 Bc5 (59... Bxa5 $2 60. Kf2 $19) 60. a6 Bxa3 61. Kf2 c2 (61... Ke4 62. Kg3 Bc5 63. Kg4 f2 64. a7 Bxa7 65. Kg5 f1=Q 66. Kxg6 c2 67. h4 Bd4 68. Kh6 c1=Q+ 69. Kh7 Qf7#) 62. Kxf3 c1=Q (62... c1=R $2 63. a7 $19) 63. Kf2 Bc5+ 64. Kg2 Qg1+ 65. Kf3 Bd6 66. h4 Qg3#) 59. Nc2 {[%emt 0:00:12]} Kd3 {[%emt 0:00:52]} 60. Ne1+ {[%emt 0:00:14]} Ke3 {[%emt 0:00:12] Weighted Error Value: White=0.55/Black=0.34  Loses game:     	White=1     	---        Missed win:     	---       	Black=1      Mistake:       	White=7     	Black=2      Inaccurate:     	White=5     	Black=1      OK:         	White=13    	Black=14     Best:        	White=2     	Black=7      Strong:       	White=2     	Black=5} (60... Kc4 $142 61. Nc2 f2) 0-1